bitfinex/quotes_BTCUSD_20230120
["timestamp","ask_amount","ask_price","bid_price","bid_amount"]
[1674258379928,0.48853911,22648.0,22647.0,0.002]
[1674258381753,0.55403911,22648.0,22647.0,0.002]
[1674258382775,0.15,22647.0,22645.0,0.01022019]
[1674258383044,0.313328,22646.0,22645.0,0.01022019]
[1674258384304,0.392328,22646.0,22645.0,0.01022019]
[1674258384849,0.458528,22646.0,22645.0,0.01022019]
[1674258385353,0.55958039,22646.0,22645.0,0.01022019]
[1674258385645,0.83181319,22646.0,22645.0,0.01022019]
[1674258385907,0.98181319,22646.0,22645.0,0.01022019]
[1674258386429,1.04801319,22646.0,22645.0,0.01022019]
[1674258388942,0.683228,22646.0,22645.0,0.01022019]
[1674258389191,1.46426194,22646.0,22645.0,0.01022019]
[1674258389432,1.48268684,22646.0,22645.0,0.01022019]
[1674258389704,1.86521425,22646.0,22645.0,1.019e-05]
[1674258389956,1.52022856,22646.0,22645.0,1.019e-05]
[1674258392629,0.92485541,22646.0,22645.0,1.019e-05]
[1674258396580,0.079,22646.0,22645.0,1.019e-05]
[1674258396851,0.079,22646.0,22645.0,0.30001019]
[1674258397101,0.079,22646.0,22645.0,0.38054719]
[1674258397368,0.079,22646.0,22645.0,0.30001019]
[1674258398392,0.079,22646.0,22645.0,1.019e-05]
[1674258398664,0.079,22646.0,22645.0,0.30001019]
[1674258400528,0.079,22646.0,22645.0,1.019e-05]
[1674258401316,0.079,22646.0,22645.0,0.30001019]
[1674258402035,0.079,22646.0,22645.0,0.29501019]
[1674258402255,0.079,22646.0,22645.0,0.44501019]
[1674258403015,0.0711,22646.0,22645.0,0.59144719]
[1674258403539,0.0711,22646.0,22645.0,0.51091019]
[1674258405098,0.0711,22646.0,22645.0,0.59144719]
[1674258405854,0.0711,22646.0,22645.0,0.65724719]
[1674258406104,0.01,22648.0,22646.0,0.07820999]
[1674258406364,0.01,22648.0,22647.0,1.607077]
[1674258406616,0.01,22648.0,22647.0,1.998703]
[1674258406869,0.0423381,22656.0,22647.0,1.998703]
[1674258407135,0.0423381,22656.0,22652.0,0.0657]
[1674258407387,0.0423381,22656.0,22653.0,1.474314]
[1674258407640,0.0423381,22656.0,22654.0,0.080483]
[1674258407942,0.0423381,22656.0,22655.0,0.882806]
[1674258408189,0.0423381,22656.0,22655.0,0.66152653]
[1674258409468,0.0523381,22656.0,22655.0,0.66152653]
[1674258410481,0.0523381,22656.0,22655.0,0.99052653]
[1674258410745,0.0423381,22656.0,22655.0,0.22012353]
[1674258410997,0.0503381,22656.0,22655.0,0.22212353]
[1674258411249,0.0423381,22656.0,22655.0,0.22012353]
[1674258411499,0.0423381,22656.0,22655.0,0.24912353]
[1674258412006,0.0423981,22656.0,22655.0,0.52012353]
[1674258412262,0.0503981,22656.0,22655.0,0.67212353]
[1674258412781,0.0503981,22656.0,22655.0,0.22212353]
[1674258413033,0.3625031,22656.0,22655.0,0.22212353]
[1674258413295,0.53869903,22656.0,22655.0,0.002]
[1674258413566,0.3625031,22656.0,22655.0,0.002]
[1674258413815,0.4286031,22656.0,22655.0,0.002]
[1674258414104,0.5786031,22656.0,22655.0,0.002]
[1674258414329,0.5706031,22656.0,22653.0,0.441438]
[1674258414583,0.301783,22655.0,22653.0,0.441438]
[1674258414875,0.321136,22654.0,22651.0,0.441473]
[1674258415116,0.319633,22653.0,22651.0,0.441473]
[1674258415399,0.324847,22652.0,22651.0,0.441473]
[1674258415649,0.14801,22655.0,22653.0,0.029]
[1674258416218,0.311141,22654.0,22653.0,0.029]
[1674258416949,0.75803891,22654.0,22648.0,0.3659]
[1674258417204,0.75803891,22654.0,22651.0,0.076]
[1674258417205,0.63080093,22653.0,22651.0,0.076]
[1674258417466,0.324782,22652.0,22647.0,0.44155]
[1674258417721,0.49003993,22651.0,22647.0,0.44155]
[1674258417977,0.49834793,22650.0,22646.0,0.441572]
[1674258418456,0.63892993,22649.0,22646.0,0.441572]
[1674258418459,0.462734,22649.0,22646.0,0.441572]
[1674258418710,0.32619593,22649.0,22646.0,0.441572]
[1674258418997,0.302423,22648.0,22646.0,0.518572]
[1674258419334,0.309075,22647.0,22646.0,0.518572]
[1674258420282,0.309075,22647.0,22646.0,0.441572]
[1674258421047,0.016,22647.0,22646.0,0.443572]
[1674258422319,0.342234,22647.0,22646.0,0.443572]
[1674258423098,0.51842993,22647.0,22646.0,0.002]
[1674258423373,0.342234,22647.0,22646.0,0.002]
[1674258423632,0.50542359,22647.0,22646.0,0.002]
[1674258423899,0.408434,22647.0,22646.0,0.002]
[1674258424152,0.558434,22647.0,22646.0,0.002]
[1674258425160,0.558494,22647.0,22646.0,0.002]
[1674258425718,0.492294,22647.0,22646.0,0.002]
[1674258426443,0.342294,22647.0,22646.0,0.002]
[1674258427171,0.342234,22647.0,22646.0,0.002]
[1674258427664,0.016,22647.0,22646.0,0.002]
[1674258427919,0.016,22647.0,22646.0,0.302]
[1674258428897,0.016,22647.0,22646.0,0.452]
[1674258429159,0.016,22647.0,22646.0,0.3682]
[1674258429422,0.016,22647.0,22646.0,0.448731]
[1674258430209,0.016,22647.0,22646.0,0.598731]
[1674258435053,0.016,22647.0,22646.0,0.664931]
[1674258435322,6e-05,22648.0,22646.0,1.393431]
[1674258435567,0.0106174,22656.0,22647.0,2.01825563]
[1674258435850,0.18681333,22656.0,22653.0,0.0662]
[1674258436105,0.0106174,22656.0,22654.0,0.441423]
[1674258436400,0.0106174,22656.0,22655.0,0.3]
[1674258436665,0.0106174,22656.0,22655.0,0.887781]
[1674258437495,0.0106174,22656.0,22655.0,0.671881]
[1674258437742,0.0106174,22656.0,22655.0,0.821879]
[1674258438249,0.0106174,22656.0,22655.0,1.038079]
[1674258439149,0.18681333,22656.0,22655.0,0.763879]
[1674258439332,0.0106174,22656.0,22655.0,0.821879]
[1674258439555,0.0106174,22656.0,22655.0,0.913879]
[1674258439788,0.0106174,22656.0,22655.0,0.971879]
[1674258440212,0.0106174,22656.0,22655.0,1.063879]
[1674258440425,0.0106174,22656.0,22655.0,0.971879]
[1674258440660,0.0106174,22656.0,22655.0,1.063879]
[1674258441517,0.0106174,22656.0,22655.0,0.971879]
[1674258442195,0.0106174,22656.0,22655.0,1.063879]
[1674258442552,0.0106174,22656.0,22655.0,1.038079]
[1674258442806,0.0106174,22656.0,22655.0,1.130079]
[1674258443068,0.0106174,22656.0,22655.0,1.13061022]
[1674258443829,0.0106174,22656.0,22655.0,1.03861022]
[1674258444344,0.0106174,22656.0,22655.0,0.50158281]
[1674258444614,0.0106174,22656.0,22655.0,0.43538281]
[1674258445643,0.0106174,22656.0,22655.0,0.73538281]
[1674258445938,0.0106174,22656.0,22655.0,0.82738281]
[1674258447011,0.0106174,22656.0,22655.0,0.29690681]
[1674258447012,0.0722974,22656.0,22655.0,0.29690681]
[1674258447556,0.3990194,22656.0,22655.0,0.29690681]
[1674258448313,0.0106174,22656.0,22655.0,0.09253122]
[1674258449084,0.3297914,22656.0,22655.0,0.09253122]
[1674258449346,0.95999716,22656.0,22655.0,0.09253122]
[1674258449619,0.92778529,22656.0,22655.0,0.09253122]
[1674258451424,0.92778529,22656.0,22655.0,0.00053122]
[1674258451681,0.15,22653.0,22650.0,1.441494]
[1674258451941,0.313692,22652.0,22650.0,1.441494]
[1674258452201,0.301834,22651.0,22650.0,1.441494]
[1674258452697,0.24416354,22654.0,22650.0,1.741494]
[1674258452957,0.001,22653.0,22650.0,1.821494]
[1674258453212,0.24416354,22654.0,22650.0,1.441494]
[1674258453470,0.24416354,22654.0,22650.0,1.521494]
[1674258453471,0.001,22651.0,22650.0,1.521494]
[1674258453727,0.24416354,22654.0,22650.0,1.891494]
[1674258454236,0.24416354,22654.0,22651.0,0.15]
[1674258454497,0.24416354,22654.0,22652.0,0.441462]
[1674258455262,0.323895,22653.0,22652.0,0.441462]
[1674258455529,0.24416354,22654.0,22652.0,0.441462]
[1674258455774,0.317667,22653.0,22652.0,0.441462]
[1674258456525,0.324667,22653.0,22652.0,0.441462]
[1674258457036,0.007,22653.0,22652.0,0.441462]
[1674258457301,0.007,22653.0,22652.0,0.741462]
[1674258458083,0.007,22653.0,22652.0,0.891462]
[1674258458349,0.007,22653.0,22652.0,0.741462]
[1674258458617,0.007,22653.0,22652.0,0.441462]
[1674258458868,0.007,22653.0,22652.0,0.741462]
[1674258459621,0.007,22653.0,22652.0,0.891462]
[1674258459875,0.007,22653.0,22652.0,0.957362]
[1674258460898,0.007,22653.0,22652.0,1.037856]
[1674258466357,0.007,22653.0,22652.0,0.587856]
[1674258466618,0.007,22653.0,22652.0,0.507362]
[1674258467135,0.007,22653.0,22652.0,0.657362]
[1674258467384,0.06868,22653.0,22652.0,0.507362]
[1674258467640,0.378546,22653.0,22652.0,0.441462]
[1674258469469,0.528546,22653.0,22652.0,0.441462]
[1674258469988,0.528546,22653.0,22651.0,0.44147]
[1674258470259,0.310837,22652.0,22651.0,0.44147]
[1674258470988,0.310837,22652.0,22651.0,0.22701272]
[1674258471533,0.310837,22652.0,22651.0,0.52701272]
[1674258471809,0.007,22653.0,22651.0,0.52701272]
[1674258472299,0.24416354,22654.0,22652.0,0.3]
[1674258472557,0.24416354,22654.0,22653.0,0.441442]
[1674258472809,0.24416354,22654.0,22653.0,0.741442]
[1674258474078,0.25116354,22654.0,22653.0,0.447442]
[1674258475098,0.54855354,22654.0,22653.0,0.447442]
[1674258475351,0.25116354,22654.0,22653.0,0.447442]
[1674258476146,0.58303054,22654.0,22653.0,0.447442]
[1674258477146,0.25116354,22654.0,22653.0,0.447442]
[1674258477413,0.25116354,22654.0,22653.0,0.747442]
[1674258477687,0.25116354,22654.0,22653.0,0.897442]
[1674258478492,0.25116354,22654.0,22653.0,0.892442]
[1674258478738,0.25116354,22654.0,22653.0,0.97293]
[1674258479205,0.25116354,22654.0,22653.0,1.07798624]
[1674258479799,0.24416354,22654.0,22653.0,0.96693]
[1674258480023,0.24516354,22654.0,22653.0,0.972442]
[1674258480560,0.21898545,22654.0,22653.0,0.972442]
[1674258480797,0.21898545,22654.0,22653.0,0.522442]
[1674258482343,0.54407145,22654.0,22653.0,0.522442]
[1674258483118,0.54407145,22654.0,22653.0,0.822442]
[1674258484690,0.54407145,22654.0,22653.0,0.522442]
[1674258487255,1.03135235,22654.0,22653.0,0.522442]
[1674258487507,1.03135235,22654.0,22653.0,0.086]
[1674258488026,1.09755235,22654.0,22653.0,0.086]
[1674258489321,1.09755235,22654.0,22650.0,1.0]
[1674258489578,0.325697,22653.0,22650.0,1.0]
[1674258489844,0.443834,22652.0,22650.0,1.0]
[1674258490143,0.29999,22651.0,22650.0,1.0]
[1674258490650,0.29999,22651.0,22650.0,1.079]
[1674258490916,0.29999,22651.0,22650.0,1.0]
[1674258491164,0.30099,22651.0,22650.0,1.05]
[1674258491449,0.39811662,22651.0,22650.0,1.0]
[1674258491677,0.29999,22651.0,22650.0,1.0]
[1674258491927,0.6594497,22651.0,22650.0,1.0]
[1674258492450,0.8234497,22651.0,22650.0,1.0]
[1674258493276,0.8094497,22651.0,22650.0,1.0]
[1674258493559,0.8224497,22651.0,22650.0,1.006]
[1674258494340,0.97272229,22651.0,22650.0,1.006]
[1674258494607,0.8224497,22651.0,22650.0,1.006]
[1674258495666,0.8224497,22651.0,22650.0,0.76848562]
[1674258497455,0.31299,22651.0,22650.0,0.76848562]
[1674258497725,0.013,22651.0,22650.0,0.76848562]
[1674258498262,0.013,22651.0,22650.0,1.06848562]
[1674258498516,0.013,22651.0,22650.0,0.76848562]
[1674258499254,0.013,22651.0,22650.0,1.06848562]
[1674258499549,0.013,22651.0,22650.0,0.76848562]
[1674258499802,0.013,22651.0,22650.0,1.06848562]
[1674258500069,0.013,22651.0,22650.0,0.76848562]
[1674258501390,0.013,22651.0,22650.0,1.06848562]
[1674258501628,0.013,22651.0,22650.0,0.84465102]
[1674258505257,0.013,22651.0,22650.0,0.99465102]
[1674258505506,0.013,22651.0,22650.0,0.84465102]
[1674258507081,0.06907,22651.0,22650.0,0.54465102]
[1674258507311,0.44470795,22651.0,22650.0,0.54465102]
[1674258507527,0.373208,22651.0,22650.0,0.54465102]
[1674258509869,0.317138,22651.0,22650.0,0.54465102]
[1674258510375,0.013,22651.0,22650.0,0.84465102]
[1674258512140,0.013,22651.0,22650.0,0.99465102]
[1674258513160,0.013,22651.0,22650.0,0.84465102]
[1674258513417,0.013,22651.0,22650.0,1.16221426]
[1674258513672,0.013,22651.0,22650.0,1.34576255]
[1674258513925,0.013,22651.0,22650.0,1.31984384]
[1674258514195,0.013,22651.0,22650.0,1.31248457]
[1674258514688,0.21798545,22654.0,22650.0,1.30648457]
[1674258514952,0.21798545,22654.0,22653.0,0.0662]
[1674258515218,0.21798545,22654.0,22653.0,0.949084]
[1674258516242,0.001,22654.0,22653.0,0.949084]
[1674258516492,0.001,22654.0,22653.0,0.882884]
[1674258516493,0.309962,22654.0,22653.0,0.882884]
[1674258516742,0.310962,22654.0,22653.0,0.962884]
[1674258517499,0.310962,22654.0,22653.0,0.08]
[1674258519624,0.42276593,22654.0,22653.0,0.08]
[1674258519942,0.310962,22654.0,22653.0,0.08]
[1674258520659,0.310962,22654.0,22653.0,0.38]
[1674258520912,0.001,22654.0,22653.0,0.5959]
[1674258521161,0.001,22654.0,22653.0,0.4459]
[1674258521923,0.001,22654.0,22653.0,0.5959]
[1674258522422,0.001,22654.0,22653.0,0.4459]
[1674258522964,0.001,22654.0,22653.0,0.5959]
[1674258523726,0.001,22654.0,22653.0,0.08]
[1674258525826,0.001,22654.0,22653.0,0.38]
[1674258526068,0.001,22654.0,22653.0,0.08]
[1674258527114,0.05707,22654.0,22653.0,0.08]
[1674258527357,0.373149,22654.0,22653.0,0.08]
[1674258528108,0.317079,22654.0,22653.0,0.08]
[1674258528614,0.001,22654.0,22653.0,0.38]
[1674258528866,0.001,22654.0,22653.0,0.08]
[1674258529128,0.001,22654.0,22653.0,0.38]
[1674258530118,0.05707,22654.0,22653.0,0.08]
[1674258530373,0.318464,22654.0,22653.0,0.08]
[1674258531902,0.43173894,22654.0,22653.0,0.08]
[1674258532161,0.92876958,22654.0,22653.0,0.08]
[1674258532941,0.15,22653.0,22650.0,0.37481502]
[1674258533204,0.47806593,22652.0,22650.0,0.37481502]
[1674258533455,0.33323,22651.0,22650.0,0.37481502]
[1674258533708,0.48323,22651.0,22650.0,0.37481502]
[1674258535010,0.47533384,22651.0,22650.0,0.37481502]
[1674258535368,0.53533384,22651.0,22650.0,0.37481502]
[1674258537818,0.91797461,22651.0,22650.0,0.37481502]
[1674258538081,0.18146139,22649.0,22645.0,0.00816713]
[1674258538331,0.315192,22648.0,22646.0,0.441572]
[1674258538577,0.323911,22647.0,22646.0,0.441572]
[1674258538838,0.18146139,22649.0,22646.0,0.591572]
[1674258539096,0.18146139,22649.0,22647.0,0.3]
[1674258539345,0.18146139,22649.0,22647.0,0.741543]
[1674258539614,0.18146139,22649.0,22647.0,0.441543]
[1674258540148,0.323901,22648.0,22647.0,0.441543]
[1674258540434,0.18146139,22649.0,22647.0,0.441543]
[1674258541456,0.19146139,22649.0,22647.0,0.442543]
[1674258542218,0.311019,22648.0,22647.0,0.442543]
[1674258542738,0.299306,22648.0,22647.0,0.442543]
[1674258543000,0.17646139,22649.0,22647.0,0.442543]
[1674258543769,0.16646139,22649.0,22647.0,0.441543]
[1674258544022,0.01,22648.0,22647.0,0.442543]
[1674258544290,0.16646139,22649.0,22647.0,0.741543]
[1674258544538,0.17646139,22649.0,22647.0,0.442543]
[1674258544787,0.17646139,22649.0,22648.0,0.5162]
[1674258545042,0.17646139,22649.0,22648.0,1.21738455]
[1674258545301,0.17646139,22649.0,22648.0,1.37474382]
[1674258545568,0.17646139,22649.0,22648.0,1.50513843]
[1674258545832,0.17646139,22649.0,22648.0,1.29035747]
[1674258545833,0.16646139,22649.0,22648.0,1.29035747]
[1674258546079,0.17046139,22649.0,22648.0,1.30435747]
[1674258546346,0.17046139,22649.0,22648.0,1.51413843]
[1674258547092,0.17046139,22649.0,22648.0,1.54713843]
[1674258547355,0.03159315,22656.0,22649.0,0.01704613]
[1674258547609,0.03159315,22656.0,22654.0,0.0659]
[1674258547886,0.03159315,22656.0,22655.0,1.121183]
[1674258548197,0.03159315,22656.0,22655.0,0.882806]
[1674258548683,0.37864215,22656.0,22655.0,0.882806]
[1674258548931,0.03159315,22656.0,22655.0,0.882806]
[1674258549964,0.03559315,22656.0,22655.0,0.932806]
[1674258550233,0.03559315,22656.0,22655.0,0.882806]
[1674258550234,0.03159315,22656.0,22655.0,0.882806]
[1674258550471,0.04459315,22656.0,22655.0,0.883806]
[1674258551247,0.04459315,22656.0,22655.0,1.183806]
[1674258551764,0.04459315,22656.0,22655.0,0.883806]
[1674258552264,0.34718215,22656.0,22655.0,0.883806]
[1674258552519,0.04459315,22656.0,22655.0,0.883806]
[1674258553038,0.37271415,22656.0,22655.0,0.883806]
[1674258553540,0.58852596,22656.0,22655.0,0.001]
[1674258553791,0.35080484,22656.0,22655.0,0.001]
[1674258558077,0.52700077,22656.0,22655.0,0.001]
[1674258558339,1.23357676,22656.0,22655.0,0.001]
[1674258558587,0.50080484,22656.0,22655.0,0.001]
[1674258560575,1.38358239,22656.0,22655.0,0.001]
[1674258561817,1.48922262,22656.0,22655.0,0.001]
[1674258562822,1.38358239,22656.0,22655.0,0.001]
[1674258563329,1.48922262,22656.0,22655.0,0.001]
[1674258564591,1.38358239,22656.0,22655.0,0.001]
[1674258564834,1.38357852,22656.0,22655.0,0.001]
[1674258565850,1.89961285,22656.0,22655.0,0.001]
[1674258566100,2.16364984,22656.0,22655.0,0.001]
[1674258566597,1.89963446,22656.0,22655.0,0.001]
[1674258567100,2.77732224,22656.0,22650.0,0.441496]
[1674258567346,1.03179008,22656.0,22655.0,0.004]
[1674258567597,1.68686181,22656.0,22655.0,0.004]
[1674258567880,2.15529532,22656.0,22650.0,0.441496]
[1674258568141,0.00644067,22653.0,22650.0,0.441496]
[1674258568425,0.295386,22652.0,22651.0,0.15]
[1674258568658,0.295386,22652.0,22651.0,0.45]
[1674258568916,0.00644067,22653.0,22651.0,0.15]
[1674258569179,0.00644067,22653.0,22650.0,0.441496]
[1674258569416,0.330717,22652.0,22650.0,0.441496]
[1674258569662,0.321259,22651.0,22650.0,0.441496]
[1674258569910,0.00644067,22653.0,22650.0,0.441496]
[1674258570476,0.057,22652.0,22650.0,0.444496]
[1674258570979,0.00644067,22653.0,22650.0,0.441496]
[1674258571216,0.06344067,22653.0,22650.0,0.444496]
[1674258571732,0.06344067,22653.0,22650.0,0.2335162]
[1674258571980,0.394723,22652.0,22650.0,0.2365162]
[1674258572482,0.309524,22651.0,22650.0,0.2365162]
[1674258573499,0.309524,22651.0,22650.0,0.2335162]
[1674258573753,0.309524,22651.0,22650.0,0.2365162]
[1674258574015,0.309524,22651.0,22650.0,0.2335162]
[1674258574273,0.309524,22651.0,22650.0,0.2365162]
[1674258574274,0.366524,22651.0,22650.0,0.2365162]
[1674258574539,0.057,22651.0,22650.0,0.5365162]
[1674258574795,0.057,22651.0,22650.0,0.3865162]
[1674258575310,0.057,22651.0,22650.0,0.6865162]
[1674258576321,0.057,22651.0,22650.0,0.2365162]
[1674258577100,0.057,22651.0,22650.0,0.3865162]
[1674258577355,0.0513,22651.0,22650.0,0.3865162]
[1674258578417,0.0513,22651.0,22650.0,0.6865162]
[1674258579197,0.0513,22651.0,22650.0,0.7527162]
[1674258579450,0.0513,22651.0,22650.0,0.8411192]
[1674258579962,0.0513,22651.0,22650.0,0.94648995]
[1674258580476,0.00644067,22653.0,22650.0,0.8381192]
[1674258580728,0.005,22651.0,22650.0,0.7235162]
[1674258580980,0.005,22651.0,22650.0,0.8778172]
[1674258581479,0.00644067,22653.0,22650.0,0.8378172]
[1674258581726,0.005,22651.0,22650.0,0.7235162]
[1674258581979,0.005,22651.0,22650.0,0.8778172]
[1674258583482,0.00644067,22653.0,22651.0,0.15]
[1674258583727,0.00644067,22653.0,22652.0,0.971315]
[1674258583991,0.00644067,22653.0,22652.0,1.421315]
[1674258584252,0.00644067,22653.0,22652.0,1.332924]
[1674258584504,0.00644067,22653.0,22652.0,0.882924]
[1674258584726,0.00644067,22653.0,22652.0,0.927924]
[1674258585006,0.01044067,22653.0,22652.0,0.927924]
[1674258586812,0.01044067,22653.0,22652.0,1.227924]
[1674258587066,0.01044067,22653.0,22652.0,0.927924]
[1674258589290,0.31982067,22653.0,22652.0,0.927924]
[1674258589545,0.31982067,22653.0,22652.0,0.486462]
[1674258589797,0.38377467,22653.0,22652.0,0.486462]
[1674258592061,0.53377467,22653.0,22652.0,0.486462]
[1674258593803,0.38377467,22653.0,22652.0,0.486462]
[1674258594050,0.38377467,22653.0,22652.0,0.27656527]
[1674258595320,0.32770467,22653.0,22652.0,0.27656527]
[1674258595577,0.3193431,22653.0,22652.0,0.27656527]
[1674258596596,0.317264,22653.0,22652.0,0.23156527]
[1674258596842,0.317264,22653.0,22652.0,0.23256527]
[1674258597854,0.323502,22653.0,22652.0,0.23256527]
[1674258598099,0.39788854,22654.0,22652.0,0.23256527]
[1674258598344,0.295846,22653.0,22652.0,0.23256527]
[1674258599358,0.295846,22653.0,22652.0,0.23156527]
[1674258600121,0.295846,22653.0,22652.0,0.23256527]
[1674258604166,0.445846,22653.0,22652.0,0.001]
[1674258604416,1.43435026,22653.0,22652.0,0.001]
[1674258604710,0.445846,22653.0,22652.0,0.001]
[1674258604966,1.43435241,22653.0,22652.0,0.001]
[1674258605756,0.445846,22653.0,22650.0,0.441494]
[1674258606012,0.199,22653.0,22652.0,0.004]
[1674258606260,0.461054,22653.0,22651.0,0.441471]
[1674258606561,0.199,22653.0,22652.0,0.004]
[1674258606769,0.509907,22653.0,22652.0,0.004]
[1674258607019,0.509907,22653.0,22651.0,0.882939]
[1674258607020,1.44941968,22653.0,22651.0,0.882939]
[1674258607271,0.322592,22652.0,22651.0,0.882939]
[1674258608755,0.322592,22652.0,22651.0,0.886939]
[1674258609015,0.74028125,22655.0,22651.0,0.882939]
[1674258609016,0.26414904,22655.0,22651.0,0.882939]
[1674258609273,0.049,22652.0,22651.0,0.886939]
[1674258609526,0.049,22652.0,22651.0,1.186939]
[1674258609792,0.049,22652.0,22651.0,1.336939]
[1674258610065,0.049,22652.0,22651.0,1.425336]
[1674258610597,0.049,22652.0,22651.0,1.336939]
[1674258611138,0.049,22652.0,22651.0,1.425336]
[1674258611884,0.049,22652.0,22651.0,1.336939]
[1674258612448,0.049,22652.0,22651.0,1.491036]
[1674258616460,0.049,22652.0,22651.0,1.75446287]
[1674258616705,0.049,22652.0,22651.0,1.491036]
[1674258617493,0.049,22652.0,22651.0,0.975336]
[1674258617744,0.049,22652.0,22651.0,0.886939]
[1674258618485,0.049,22652.0,22651.0,0.83627401]
[1674258618738,0.049,22652.0,22651.0,1.13627401]
[1674258621299,0.049,22652.0,22651.0,1.1368054]
[1674258621544,0.049,22652.0,22651.0,1.2252024]
[1674258622036,0.049,22652.0,22651.0,1.61998053]
[1674258622289,0.049,22652.0,22651.0,1.46192441]
[1674258622563,0.049,22652.0,22651.0,1.40954686]
[1674258622809,0.40893741,22656.0,22652.0,0.15]
[1674258623077,0.40893741,22656.0,22653.0,0.882876]
[1674258623301,0.40893741,22656.0,22654.0,0.15]
[1674258623545,0.40893741,22656.0,22654.0,0.591412]
[1674258623796,0.40893741,22656.0,22654.0,0.441412]
[1674258624047,0.313924,22655.0,22654.0,0.441412]
[1674258624547,0.40893741,22656.0,22654.0,0.441412]
[1674258624794,0.313071,22655.0,22654.0,0.445412]
[1674258625295,0.45393741,22656.0,22654.0,0.445412]
[1674258625549,0.40893741,22656.0,22654.0,0.445412]
[1674258625800,0.045,22655.0,22654.0,0.445412]
[1674258626043,0.351938,22655.0,22654.0,0.445412]
[1674258626287,0.045,22655.0,22654.0,0.445412]
[1674258627272,0.40893741,22656.0,22654.0,0.441412]
[1674258627522,0.45393741,22656.0,22654.0,0.445412]
[1674258627768,0.45393741,22656.0,22654.0,0.441412]
[1674258628017,0.45393741,22656.0,22654.0,0.445412]
[1674258628018,0.045,22655.0,22654.0,0.445412]
[1674258628262,1.31493741,22656.0,22654.0,0.441412]
[1674258628521,0.317012,22655.0,22654.0,0.445412]
[1674258628773,1.31493741,22656.0,22654.0,0.441412]
[1674258629030,0.045,22655.0,22654.0,0.445412]
[1674258629273,0.36777,22655.0,22654.0,0.21212789]
[1674258629518,0.045,22655.0,22654.0,0.21212789]
[1674258631293,0.045,22655.0,22654.0,0.51212789]
[1674258631543,0.045,22655.0,22654.0,0.21212789]
[1674258631800,0.045,22655.0,22654.0,0.51212789]
[1674258632056,0.045,22655.0,22654.0,0.66212789]
[1674258632315,0.045,22655.0,22654.0,0.51212789]
[1674258632824,0.045,22655.0,22654.0,0.79422789]
[1674258633078,0.045,22655.0,22654.0,0.90855899]
[1674258633617,0.91568384,22656.0,22654.0,1.11550049]
[1674258633888,0.91568384,22656.0,22655.0,0.68729215]
[1674258634146,0.91568384,22656.0,22655.0,1.111675]
[1674258635478,0.90098499,22656.0,22655.0,1.111675]
[1674258635996,0.90498499,22656.0,22655.0,1.161675]
[1674258636264,0.90098499,22656.0,22655.0,1.111675]
[1674258636531,0.90498499,22656.0,22655.0,1.111675]
[1674258636773,0.90098499,22656.0,22655.0,1.111675]
[1674258637135,0.90498499,22656.0,22655.0,1.161675]
[1674258637292,0.90498499,22656.0,22655.0,1.111675]
[1674258637293,0.90098499,22656.0,22655.0,1.111675]
[1674258637555,0.90498499,22656.0,22655.0,1.62464815]
[1674258638078,0.90498499,22656.0,22655.0,1.62714815]
[1674258638334,0.90098499,22656.0,22655.0,1.57714815]
[1674258638577,0.67925899,22656.0,22655.0,1.62714815]
[1674258640386,0.67925899,22656.0,22655.0,0.795975]
[1674258640387,0.85545492,22656.0,22655.0,0.795975]
[1674258640629,0.67925899,22656.0,22655.0,0.645975]
[1674258640911,0.67925899,22656.0,22655.0,0.795975]
[1674258641687,0.67925899,22656.0,22655.0,1.095975]
[1674258643235,0.67925899,22656.0,22655.0,0.9482766]
[1674258643522,0.67925899,22656.0,22655.0,0.71521673]
[1674258644039,0.67925899,22656.0,22655.0,0.78141673]
[1674258645324,0.67925899,22656.0,22655.0,1.23588988]
[1674258645610,0.67925899,22656.0,22655.0,1.24438988]
[1674258648936,0.67925899,22656.0,22655.0,1.24688988]
[1674258649194,0.66526197,22656.0,22655.0,1.24688988]
[1674258649501,0.66526197,22656.0,22655.0,0.48391673]
[1674258650472,0.66126197,22656.0,22655.0,0.43391673]
[1674258650753,0.66526197,22656.0,22655.0,0.47991673]
[1674258650990,0.66526197,22656.0,22655.0,0.77991673]
[1674258651509,0.66526197,22656.0,22655.0,1.24288988]
[1674258651510,0.15220397,22656.0,22655.0,1.24288988]
[1674258651771,0.01201825,22657.0,22656.0,0.15]
[1674258652028,0.01201825,22657.0,22656.0,1.14979779]
[1674258652281,0.01201825,22657.0,22656.0,1.36073929]
[1674258652578,0.01081643,22657.0,22656.0,1.20291228]
[1674258653325,0.01081643,22657.0,22656.0,1.14979877]
[1674258653558,0.01081643,22657.0,22656.0,1.25501813]
[1674258653817,0.01481643,22657.0,22656.0,1.08264825]
[1674258654074,0.01481643,22657.0,22656.0,1.12743914]
[1674258654336,0.01481643,22657.0,22656.0,1.23266296]
[1674258654598,0.01481643,22657.0,22656.0,1.20676593]
[1674258654842,0.01481643,22657.0,22656.0,0.94371412]
[1674258655599,4.3e-07,22657.0,22656.0,0.94371412]
[1674258655866,0.01142642,22658.0,22656.0,0.95221412]
[1674258656113,0.01142642,22658.0,22657.0,0.2159]
[1674258656447,0.01142642,22658.0,22657.0,0.957264]
[1674258657412,0.01102555,22659.0,22658.0,0.15]
[1674258657749,0.01102555,22659.0,22658.0,0.957545]
[1674258658448,0.01402555,22659.0,22658.0,1.010545]
[1674258659735,0.01402555,22659.0,22658.0,0.77520209]
[1674258659969,0.01402555,22659.0,22658.0,0.92520209]
[1674258661009,0.01201908,22663.0,22659.0,0.15]
[1674258661266,0.01201908,22663.0,22660.0,0.948312]
[1674258661523,0.01201908,22663.0,22661.0,0.5162]
[1674258661768,0.01201908,22663.0,22661.0,0.957486]
[1674258662306,1.27110629,22666.0,22662.0,0.15]
[1674258662551,0.01197267,22667.0,22663.0,1.323729]
[1674258662870,0.01197267,22667.0,22664.0,0.3662]